[Event "Titled Tuesday Blitz March 28 Early 2023"]
[White "Wagner, Dennis"]
[Black "Martinez Alcantara, Jose Eduardo"]
[WhiteFideId "24650684"]
[BlackFideId "3805662"]
[WhiteElo "2470"]
[BlackElo "2712"]
[Result "0-1"]
[Round "06"]
[TimeControl "180+2"]
[Date "2023.03.28"]
[WhiteClock "0:00:01"]
[BlackClock "0:00:09"]

1. d4 {[%clk 0:02:59]}  Nf6 {[%clk 0:02:55]} 2. Nf3 {[%clk 0:02:59]}  e6 {[%clk 0:02:53]} 3. g3 {[%clk 0:02:58]}  b5 {[%clk 0:02:50]} 4. Bg2 {[%clk 0:02:55]}  Bb7 {[%clk 0:02:50]} 5. O-O {[%clk 0:02:55]}  Be7 {[%clk 0:02:50]} 6. a4 {[%clk 0:02:49]}  b4 {[%clk 0:02:48]} 7. c4 {[%clk 0:02:49]}  a5 {[%clk 0:02:44]} 8. Qd3 {[%clk 0:02:44]}  d6 {[%clk 0:02:41]} 9. Bg5 {[%clk 0:02:36]}  Nbd7 {[%clk 0:02:37]} 10. Nbd2 {[%clk 0:02:36]}  O-O {[%clk 0:02:24]} 11. e4 {[%clk 0:02:32]}  e5 {[%clk 0:02:23]} 12. h3 {[%clk 0:02:19]}  Re8 {[%clk 0:02:13]} 13. Rfe1 {[%clk 0:02:18]}  h6 {[%clk 0:02:11]} 14. Be3 {[%clk 0:02:13]}  exd4 {[%clk 0:02:08]} 15. Bxd4 {[%clk 0:02:06]}  Nc5 {[%clk 0:02:08]} 16. Qc2 {[%clk 0:02:01]}  Nfd7 {[%clk 0:02:05]} 17. Nh2 {[%clk 0:01:34]}  Bf6 {[%clk 0:01:39]} 18. Be3 {[%clk 0:01:33]}  Ne5 {[%clk 0:01:25]} 19. Bxc5 {[%clk 0:00:44]}  dxc5 {[%clk 0:01:23]} 20. Nb3 {[%clk 0:00:32]}  Qd3 {[%clk 0:01:19]} 21. Rac1 {[%clk 0:00:32]}  Ba6 {[%clk 0:01:00]} 22. Nxc5 {[%clk 0:00:29]}  Qxc2 {[%clk 0:01:01]} 23. Rxc2 {[%clk 0:00:29]}  Bxc4 {[%clk 0:01:01]} 24. Nd7 {[%clk 0:00:20]}  Nxd7 {[%clk 0:00:55]} 25. Rxc4 {[%clk 0:00:19]}  Bxb2 {[%clk 0:00:55]} 26. Rxc7 {[%clk 0:00:20]}  Ne5 {[%clk 0:00:52]} 27. Rd1 {[%clk 0:00:19]}  Rac8 {[%clk 0:00:49]} 28. Rb7 {[%clk 0:00:12]}  Red8 {[%clk 0:00:44]} 29. Rxd8+ {[%clk 0:00:11]}  Rxd8 {[%clk 0:00:45]} 30. Nf1 {[%clk 0:00:10]}  Bd4 {[%clk 0:00:42]} 31. Rb5 {[%clk 0:00:11]}  Nd3 {[%clk 0:00:42]} 32. Rxa5 {[%clk 0:00:09]}  Bxf2+ {[%clk 0:00:40]} 33. Kh2 {[%clk 0:00:09]}  b3 {[%clk 0:00:35]} 34. Rb5 {[%clk 0:00:09]}  b2 {[%clk 0:00:35]} 35. e5 {[%clk 0:00:10]}  Bd4 {[%clk 0:00:33]} 36. Be4 {[%clk 0:00:10]}  Nxe5 {[%clk 0:00:32]} 37. a5 {[%clk 0:00:10]}  g6 {[%clk 0:00:32]} 38. a6 {[%clk 0:00:10]}  Rd6 {[%clk 0:00:29]} 39. Rxb2 {[%clk 0:00:08]}  Rxa6 {[%clk 0:00:26]} 40. Re2 {[%clk 0:00:09]}  Kg7 {[%clk 0:00:25]} 41. Bg2 {[%clk 0:00:08]}  h5 {[%clk 0:00:23]} 42. Ne3 {[%clk 0:00:08]}  Ra1 {[%clk 0:00:19]} 43. Nc2 {[%clk 0:00:08]}  Bg1+ {[%clk 0:00:18]} 44. Kh1 {[%clk 0:00:08]}  Rc1 {[%clk 0:00:19]} 45. Rxe5 {[%clk 0:00:05]}  Bf2+ {[%clk 0:00:19]} 46. Ne1 {[%clk 0:00:03]}  Bxg3 {[%clk 0:00:18]} 47. Re3 {[%clk 0:00:02]}  Bxe1 {[%clk 0:00:18]} 48. Kh2 {[%clk 0:00:02]}  Bb4 {[%clk 0:00:19]} 49. h4 {[%clk 0:00:02]}  Bd6+ {[%clk 0:00:19]} 50. Kh3 {[%clk 0:00:03]}  Rc4 {[%clk 0:00:19]} 51. Rf3 {[%clk 0:00:03]}  Be7 {[%clk 0:00:18]} 52. Re3 {[%clk 0:00:03]}  Rxh4+ {[%clk 0:00:17]} 53. Kg3 {[%clk 0:00:04]}  Bg5 {[%clk 0:00:18]} 54. Rd3 {[%clk 0:00:04]}  Rg4+ {[%clk 0:00:18]} 55. Kf3 {[%clk 0:00:04]}  Rf4+ {[%clk 0:00:18]} 56. Ke2 {[%clk 0:00:05]}  Rb4 {[%clk 0:00:19]} 57. Bf3 {[%clk 0:00:05]}  Rb2+ {[%clk 0:00:18]} 58. Kf1 {[%clk 0:00:05]}  Rd2 {[%clk 0:00:18]} 59. Rc3 {[%clk 0:00:05]}  Rd7 {[%clk 0:00:18]} 60. Be2 {[%clk 0:00:05]}  Re7 {[%clk 0:00:18]} 61. Kf2 {[%clk 0:00:06]}  f5 {[%clk 0:00:19]} 62. Rd3 {[%clk 0:00:06]}  Bh4+ {[%clk 0:00:19]} 63. Kf1 {[%clk 0:00:06]}  Bf6 {[%clk 0:00:20]} 64. Bf3 {[%clk 0:00:06]}  h4 {[%clk 0:00:20]} 65. Kf2 {[%clk 0:00:06]}  Kh6 {[%clk 0:00:21]} 66. Rd5 {[%clk 0:00:06]}  Be5 {[%clk 0:00:19]} 67. Be2 {[%clk 0:00:05]}  Kg5 {[%clk 0:00:20]} 68. Bd3 {[%clk 0:00:05]}  Kf4 {[%clk 0:00:20]} 69. Ra5 {[%clk 0:00:05]}  Bd4+ {[%clk 0:00:19]} 70. Kf1 {[%clk 0:00:06]}  h3 {[%clk 0:00:17]} 71. Ra3 {[%clk 0:00:06]}  Rh7 {[%clk 0:00:13]} 72. Be2 {[%clk 0:00:02]}  h2 {[%clk 0:00:12]} 73. Bf3 {[%clk 0:00:02]}  h1=R+ {[%clk 0:00:11]} 74. Bxh1 {[%clk 0:00:03]}  Rxh1+ {[%clk 0:00:11]} 75. Kg2 {[%clk 0:00:04]}  Rg1+ {[%clk 0:00:11]} 76. Kh2 {[%clk 0:00:04]}  Rd1 {[%clk 0:00:11]} 77. Rh3 {[%clk 0:00:03]}  g5 {[%clk 0:00:11]} 78. Rh7 {[%clk 0:00:02]}  g4 {[%clk 0:00:11]} 79. Re7 {[%clk 0:00:03]}  Be5 {[%clk 0:00:11]} 80. Kg2 {[%clk 0:00:03]}  Rd2+ {[%clk 0:00:11]} 81. Kh1 {[%clk 0:00:03]}  Kg3 {[%clk 0:00:11]} 82. Rd7 {[%clk 0:00:01]}  Rxd7 {[%clk 0:00:09]} 0-1


[Site "https://www.chess.com"]

[Event "Titled Tuesday Blitz March 28 Early 2023"]
[White "Kosteniuk, Alexandra"]
[Black "Sasikiran, Krishnan"]
[WhiteFideId "4128125"]
[BlackFideId "5004985"]
[WhiteElo "2453"]
[BlackElo "2567"]
[Result "0-1"]
[Round "06"]
[TimeControl "180+2"]
[Date "2023.03.28"]
[WhiteClock "0:00:26"]
[BlackClock "0:01:36"]

1. e4 {[%clk 0:03:00]}  c5 {[%clk 0:03:00]} 2. c3 {[%clk 0:03:00]}  d5 {[%clk 0:02:59]} 3. exd5 {[%clk 0:03:00]}  Qxd5 {[%clk 0:03:00]} 4. d4 {[%clk 0:03:00]}  g6 {[%clk 0:03:00]} 5. Nf3 {[%clk 0:02:59]}  Bg7 {[%clk 0:03:00]} 6. Nbd2 {[%clk 0:02:59]}  cxd4 {[%clk 0:02:47]} 7. Bc4 {[%clk 0:02:58]}  Qd8 {[%clk 0:02:45]} 8. Nxd4 {[%clk 0:02:57]}  Nf6 {[%clk 0:02:41]} 9. O-O {[%clk 0:02:56]}  O-O {[%clk 0:02:41]} 10. Re1 {[%clk 0:02:56]}  Qc7 {[%clk 0:02:41]} 11. N4f3 {[%clk 0:02:48]}  Nc6 {[%clk 0:02:37]} 12. a4 {[%clk 0:02:44]}  b6 {[%clk 0:02:33]} 13. b4 {[%clk 0:02:34]}  Bb7 {[%clk 0:02:32]} 14. Qb3 {[%clk 0:02:29]}  e6 {[%clk 0:02:24]} 15. Bb2 {[%clk 0:02:23]}  Rad8 {[%clk 0:02:23]} 16. Nf1 {[%clk 0:02:20]}  Nd5 {[%clk 0:02:20]} 17. a5 {[%clk 0:02:08]}  Nce7 {[%clk 0:02:07]} 18. axb6 {[%clk 0:02:04]}  axb6 {[%clk 0:02:07]} 19. Ne3 {[%clk 0:01:49]}  Nf4 {[%clk 0:02:04]} 20. Ra7 {[%clk 0:01:39]}  Qb8 {[%clk 0:02:01]} 21. Rea1 {[%clk 0:01:30]}  Nc8 {[%clk 0:01:49]} 22. R7a2 {[%clk 0:01:15]}  Bxf3 {[%clk 0:01:48]} 23. gxf3 {[%clk 0:01:16]}  Qb7 {[%clk 0:01:42]} 24. Bf1 {[%clk 0:00:25]}  Qxf3 {[%clk 0:01:40]} 25. Qc4 {[%clk 0:00:26]}  Rd2 {[%clk 0:01:36]} 0-1


[Site "https://www.chess.com"]

[Event "Titled Tuesday Blitz March 28 Early 2023"]
[White "Svane, Frederik"]
[Black "Iniyan, P"]
[WhiteFideId "12923044"]
[BlackFideId "25002767"]
[WhiteElo "2502"]
[BlackElo "2449"]
[Result "0-1"]
[Round "06"]
[TimeControl "180+2"]
[Date "2023.03.28"]
[WhiteClock "0:00:11"]
[BlackClock "0:00:16"]

1. g3 {[%clk 0:03:00]}  Nf6 {[%clk 0:02:57]} 2. Bg2 {[%clk 0:03:00]}  d5 {[%clk 0:02:57]} 3. Nf3 {[%clk 0:02:59]}  Bf5 {[%clk 0:02:58]} 4. O-O {[%clk 0:02:57]}  e6 {[%clk 0:02:58]} 5. d3 {[%clk 0:02:56]}  h6 {[%clk 0:02:58]} 6. b3 {[%clk 0:02:57]}  Nbd7 {[%clk 0:02:58]} 7. Bb2 {[%clk 0:02:57]}  Bh7 {[%clk 0:02:58]} 8. Nbd2 {[%clk 0:02:58]}  Bd6 {[%clk 0:02:56]} 9. Re1 {[%clk 0:02:57]}  O-O {[%clk 0:02:56]} 10. e4 {[%clk 0:02:58]}  dxe4 {[%clk 0:02:47]} 11. dxe4 {[%clk 0:02:59]}  e5 {[%clk 0:02:47]} 12. Nc4 {[%clk 0:02:54]}  Qe7 {[%clk 0:02:46]} 13. Nh4 {[%clk 0:02:48]}  Nb6 {[%clk 0:02:25]} 14. Nxd6 {[%clk 0:02:46]}  cxd6 {[%clk 0:02:26]} 15. c4 {[%clk 0:02:46]}  Rfd8 {[%clk 0:02:21]} 16. Qf3 {[%clk 0:02:35]}  Qe6 {[%clk 0:02:03]} 17. Nf5 {[%clk 0:02:32]}  Nxe4 {[%clk 0:01:54]} 18. Qxe4 {[%clk 0:02:22]}  Bxf5 {[%clk 0:01:49]} 19. Qxb7 {[%clk 0:02:22]}  Rab8 {[%clk 0:01:49]} 20. Qxa7 {[%clk 0:02:01]}  Nxc4 {[%clk 0:01:48]} 21. Bc3 {[%clk 0:01:53]}  Nb6 {[%clk 0:01:45]} 22. Ba5 {[%clk 0:01:49]}  d5 {[%clk 0:01:44]} 23. Rad1 {[%clk 0:01:40]}  e4 {[%clk 0:01:09]} 24. Rd4 {[%clk 0:01:15]}  Rdc8 {[%clk 0:00:54]} 25. Rb4 {[%clk 0:00:57]}  Nd7 {[%clk 0:00:50]} 26. Rxb8 {[%clk 0:00:51]}  Rxb8 {[%clk 0:00:51]} 27. Bc3 {[%clk 0:00:48]}  f6 {[%clk 0:00:47]} 28. Rd1 {[%clk 0:00:42]}  Rc8 {[%clk 0:00:43]} 29. Qa5 {[%clk 0:00:32]}  Bg4 {[%clk 0:00:34]} 30. Re1 {[%clk 0:00:20]}  Nc5 {[%clk 0:00:26]} 31. Bf1 {[%clk 0:00:14]}  Bf3 {[%clk 0:00:21]} 32. Bd4 {[%clk 0:00:13]}  Nd7 {[%clk 0:00:21]} 33. Qd2 {[%clk 0:00:13]}  Ne5 {[%clk 0:00:21]} 34. a4 {[%clk 0:00:11]}  Bg4 {[%clk 0:00:18]} 35. Bxe5 {[%clk 0:00:11]}  fxe5 {[%clk 0:00:19]} 36. a5 {[%clk 0:00:11]}  Bf3 {[%clk 0:00:15]} 37. a6 {[%clk 0:00:11]}  d4 {[%clk 0:00:16]} 38. Bc4 {[%clk 0:00:11]}  Rxc4 {[%clk 0:00:16]} 39. bxc4 {[%clk 0:00:11]}  Qh3 {[%clk 0:00:16]} 0-1


[Site "https://www.chess.com"]

[Event "Titled Tuesday Blitz March 28 Early 2023"]
[White "Samant Aditya S"]
[Black "Rustemov, Alexander"]
[WhiteFideId "35080580"]
[BlackFideId "4119002"]
[WhiteElo "2362"]
[BlackElo "2865"]
[Result "0-1"]
[Round "06"]
[TimeControl "180+2"]
[Date "2023.03.28"]
[WhiteClock "0:00:02"]
[BlackClock "0:00:35"]

1. Nf3 {[%clk 0:03:00]}  d5 {[%clk 0:02:46]} 2. b3 {[%clk 0:03:00]}  Nf6 {[%clk 0:02:45]} 3. Bb2 {[%clk 0:03:01]}  Bf5 {[%clk 0:02:46]} 4. e3 {[%clk 0:03:01]}  h6 {[%clk 0:02:44]} 5. d3 {[%clk 0:02:55]}  e6 {[%clk 0:02:44]} 6. Nbd2 {[%clk 0:02:56]}  Be7 {[%clk 0:02:44]} 7. g3 {[%clk 0:02:51]}  O-O {[%clk 0:02:41]} 8. Bg2 {[%clk 0:02:52]}  c5 {[%clk 0:02:41]} 9. O-O {[%clk 0:02:52]}  Nc6 {[%clk 0:02:42]} 10. h3 {[%clk 0:02:35]}  Qc7 {[%clk 0:02:41]} 11. Qe2 {[%clk 0:02:14]}  Rfd8 {[%clk 0:02:40]} 12. e4 {[%clk 0:02:07]}  Bh7 {[%clk 0:02:38]} 13. a3 {[%clk 0:01:55]}  Rac8 {[%clk 0:02:37]} 14. Rac1 {[%clk 0:01:52]}  b5 {[%clk 0:02:34]} 15. Rfe1 {[%clk 0:01:45]}  a5 {[%clk 0:02:12]} 16. exd5 {[%clk 0:01:06]}  Nxd5 {[%clk 0:02:11]} 17. Ne4 {[%clk 0:01:05]}  Qb6 {[%clk 0:01:58]} 18. c4 {[%clk 0:00:45]}  Nc7 {[%clk 0:01:57]} 19. Ba1 {[%clk 0:00:37]}  b4 {[%clk 0:01:46]} 20. a4 {[%clk 0:00:28]}  Rd7 {[%clk 0:01:46]} 21. Rcd1 {[%clk 0:00:21]}  Rcd8 {[%clk 0:01:46]} 22. Qb2 {[%clk 0:00:21]}  f6 {[%clk 0:01:41]} 23. Qe2 {[%clk 0:00:18]}  e5 {[%clk 0:01:42]} 24. Nh4 {[%clk 0:00:15]}  Ne6 {[%clk 0:01:41]} 25. Qg4 {[%clk 0:00:14]}  Ned4 {[%clk 0:01:36]} 26. Qh5 {[%clk 0:00:13]}  Bf8 {[%clk 0:01:28]} 27. Ng6 {[%clk 0:00:11]}  Nxb3 {[%clk 0:01:27]} 28. Bb2 {[%clk 0:00:10]}  Ncd4 {[%clk 0:01:26]} 29. Nxf8 {[%clk 0:00:06]}  Rxf8 {[%clk 0:01:21]} 30. h4 {[%clk 0:00:06]}  Qc7 {[%clk 0:01:05]} 31. Nd2 {[%clk 0:00:04]}  Nxd2 {[%clk 0:01:00]} 32. Rxd2 {[%clk 0:00:05]}  Rfd8 {[%clk 0:00:47]} 33. Rdd1 {[%clk 0:00:05]}  Kh8 {[%clk 0:00:40]} 34. Re3 {[%clk 0:00:03]}  Qd6 {[%clk 0:00:37]} 35. Kh2 {[%clk 0:00:02]}  Qf8 {[%clk 0:00:37]} 36. Bd5 {[%clk 0:00:03]}  Qe8 {[%clk 0:00:36]} 37. Qg4 {[%clk 0:00:02]}  Bf5 {[%clk 0:00:35]} 0-1


[Site "https://www.chess.com"]

[Event "Titled Tuesday Blitz March 28 Early 2023"]
[White "Matinian, Nikita"]
[Black "Pichot, Alan"]
[WhiteFideId "24129100"]
[BlackFideId "110973"]
[WhiteElo "2422"]
[BlackElo "2573"]
[Result "0-1"]
[Round "06"]
[TimeControl "180+2"]
[Date "2023.03.28"]
[WhiteClock "0:00:03"]
[BlackClock "0:00:16"]

1. e4 {[%clk 0:02:56]}  c5 {[%clk 0:02:53]} 2. Nf3 {[%clk 0:02:56]}  e6 {[%clk 0:02:51]} 3. d4 {[%clk 0:02:56]}  cxd4 {[%clk 0:02:51]} 4. Nxd4 {[%clk 0:02:57]}  Nc6 {[%clk 0:02:51]} 5. Nc3 {[%clk 0:02:57]}  Qc7 {[%clk 0:02:51]} 6. Be3 {[%clk 0:02:56]}  a6 {[%clk 0:02:50]} 7. Be2 {[%clk 0:02:56]}  Nf6 {[%clk 0:02:50]} 8. O-O {[%clk 0:02:56]}  Be7 {[%clk 0:02:50]} 9. f4 {[%clk 0:02:54]}  d6 {[%clk 0:02:49]} 10. Kh1 {[%clk 0:02:54]}  O-O {[%clk 0:02:48]} 11. Qe1 {[%clk 0:02:54]}  Nxd4 {[%clk 0:02:47]} 12. Bxd4 {[%clk 0:02:55]}  b5 {[%clk 0:02:48]} 13. a3 {[%clk 0:02:53]}  Bb7 {[%clk 0:02:46]} 14. Qg3 {[%clk 0:02:53]}  Bc6 {[%clk 0:02:44]} 15. Bd3 {[%clk 0:02:46]}  Qb7 {[%clk 0:02:43]} 16. Rae1 {[%clk 0:02:39]}  b4 {[%clk 0:02:38]} 17. axb4 {[%clk 0:01:59]}  Qxb4 {[%clk 0:02:38]} 18. Bxf6 {[%clk 0:01:59]}  Bxf6 {[%clk 0:02:38]} 19. e5 {[%clk 0:02:00]}  dxe5 {[%clk 0:02:19]} 20. fxe5 {[%clk 0:01:58]}  Bh4 {[%clk 0:01:53]} 21. Qh3 {[%clk 0:01:56]}  h6 {[%clk 0:01:39]} 22. Re3 {[%clk 0:00:53]}  Bg5 {[%clk 0:01:30]} 23. Rg3 {[%clk 0:00:48]}  Qh4 {[%clk 0:01:29]} 24. Qxh4 {[%clk 0:00:43]}  Bxh4 {[%clk 0:01:30]} 25. Rg4 {[%clk 0:00:43]}  Be7 {[%clk 0:01:24]} 26. Ne4 {[%clk 0:00:44]}  Kh8 {[%clk 0:01:04]} 27. h4 {[%clk 0:00:42]}  a5 {[%clk 0:00:59]} 28. b3 {[%clk 0:00:41]}  a4 {[%clk 0:00:58]} 29. bxa4 {[%clk 0:00:42]}  Rxa4 {[%clk 0:00:58]} 30. h5 {[%clk 0:00:41]}  Ra5 {[%clk 0:00:55]} 31. Nd6 {[%clk 0:00:21]}  Bxd6 {[%clk 0:00:54]} 32. exd6 {[%clk 0:00:22]}  Rxh5+ {[%clk 0:00:54]} 33. Kg1 {[%clk 0:00:22]}  Rd5 {[%clk 0:00:55]} 34. Bg6 {[%clk 0:00:18]}  Kg8 {[%clk 0:00:48]} 35. Rgf4 {[%clk 0:00:09]}  Be8 {[%clk 0:00:42]} 36. Bd3 {[%clk 0:00:04]}  Rxd6 {[%clk 0:00:41]} 37. g4 {[%clk 0:00:03]}  f6 {[%clk 0:00:32]} 38. Kh2 {[%clk 0:00:04]}  e5 {[%clk 0:00:29]} 39. Rb4 {[%clk 0:00:04]}  Bd7 {[%clk 0:00:27]} 40. Kg3 {[%clk 0:00:04]}  Be6 {[%clk 0:00:23]} 41. Ra1 {[%clk 0:00:04]}  Rfd8 {[%clk 0:00:23]} 42. Ra7 {[%clk 0:00:04]}  Rd4 {[%clk 0:00:23]} 43. Rxd4 {[%clk 0:00:03]}  Rxd4 {[%clk 0:00:24]} 44. Ra8+ {[%clk 0:00:02]}  Kf7 {[%clk 0:00:24]} 45. Ra7+ {[%clk 0:00:03]}  Kf8 {[%clk 0:00:24]} 46. Ra8+ {[%clk 0:00:03]}  Ke7 {[%clk 0:00:25]} 47. Ra7+ {[%clk 0:00:04]}  Rd7 {[%clk 0:00:24]} 48. Ra6 {[%clk 0:00:04]}  Rc7 {[%clk 0:00:19]} 49. Kh4 {[%clk 0:00:04]}  Rd7 {[%clk 0:00:16]} 50. Kh5 {[%clk 0:00:04]}  Bf7+ {[%clk 0:00:16]} 51. Kh4 {[%clk 0:00:04]}  g5+ {[%clk 0:00:14]} 52. Kg3 {[%clk 0:00:04]}  h5 {[%clk 0:00:14]} 53. gxh5 {[%clk 0:00:03]}  Bxh5 {[%clk 0:00:15]} 54. Bf5 {[%clk 0:00:03]}  Rc7 {[%clk 0:00:14]} 55. Re6+ {[%clk 0:00:03]}  Kf7 {[%clk 0:00:15]} 56. Rb6 {[%clk 0:00:04]}  Bg6 {[%clk 0:00:15]} 57. Be6+ {[%clk 0:00:03]}  Kg7 {[%clk 0:00:15]} 58. c4 {[%clk 0:00:04]}  Bf7 {[%clk 0:00:15]} 59. Bd5 {[%clk 0:00:02]}  Bxd5 {[%clk 0:00:14]} 60. cxd5 {[%clk 0:00:03]}  Rc3+ {[%clk 0:00:15]} 61. Kg4 {[%clk 0:00:03]}  Kg6 {[%clk 0:00:16]} 62. d6 {[%clk 0:00:03]}  f5# {[%clk 0:00:16]} 0-1


[Site "https://www.chess.com"]

[Event "Titled Tuesday Blitz March 28 Early 2023"]
[White "Martinez Ramirez, Lennis"]
[Black "Kezin, Roman"]
[WhiteFideId "3509079"]
[BlackFideId "24124621"]
[WhiteElo "2439"]
[BlackElo "2497"]
[Result "0-1"]
[Round "06"]
[TimeControl "180+2"]
[Date "2023.03.28"]
[WhiteClock "0:00:28"]
[BlackClock "0:00:37"]

1. c4 {[%clk 0:03:00]}  b6 {[%clk 0:02:58]} 2. e4 {[%clk 0:02:59]}  Bb7 {[%clk 0:02:52]} 3. Nc3 {[%clk 0:02:59]}  c5 {[%clk 0:02:50]} 4. g3 {[%clk 0:02:56]}  Nc6 {[%clk 0:02:49]} 5. Bg2 {[%clk 0:02:56]}  g6 {[%clk 0:02:49]} 6. h4 {[%clk 0:02:53]}  h6 {[%clk 0:02:49]} 7. h5 {[%clk 0:02:54]}  g5 {[%clk 0:02:49]} 8. Nge2 {[%clk 0:02:47]}  Bg7 {[%clk 0:02:49]} 9. d3 {[%clk 0:02:46]}  g4 {[%clk 0:02:42]} 10. Nf4 {[%clk 0:02:42]}  Nf6 {[%clk 0:02:36]} 11. e5 {[%clk 0:02:30]}  Ng8 {[%clk 0:02:31]} 12. e6 {[%clk 0:02:27]}  dxe6 {[%clk 0:02:23]} 13. Qxg4 {[%clk 0:02:26]}  Nf6 {[%clk 0:01:51]} 14. Qxg7 {[%clk 0:02:06]}  Rh7 {[%clk 0:01:51]} 15. Nxe6 {[%clk 0:02:06]}  Qd6 {[%clk 0:01:51]} 16. Qxh7 {[%clk 0:01:17]}  Nxh7 {[%clk 0:01:52]} 17. Ng7+ {[%clk 0:01:13]}  Kf8 {[%clk 0:01:45]} 18. Nf5 {[%clk 0:01:13]}  Qe6+ {[%clk 0:01:33]} 19. Ne3 {[%clk 0:00:54]}  Rd8 {[%clk 0:01:18]} 20. Nd5 {[%clk 0:00:53]}  Nd4 {[%clk 0:01:17]} 21. O-O {[%clk 0:00:52]}  Qe5 {[%clk 0:01:10]} 22. g4 {[%clk 0:00:47]}  e6 {[%clk 0:01:07]} 23. f4 {[%clk 0:00:40]}  Ne2+ {[%clk 0:00:58]} 24. Kf2 {[%clk 0:00:32]}  Nxf4 {[%clk 0:00:57]} 25. Nxf4 {[%clk 0:00:33]}  Qxf4+ {[%clk 0:00:57]} 26. Ke2 {[%clk 0:00:33]}  Qc7 {[%clk 0:00:57]} 27. Bxb7 {[%clk 0:00:30]}  Qxb7 {[%clk 0:00:58]} 28. Bd2 {[%clk 0:00:30]}  Qd7 {[%clk 0:00:55]} 29. Rad1 {[%clk 0:00:29]}  Qxd3+ {[%clk 0:00:54]} 30. Kf2 {[%clk 0:00:29]}  Qe4 {[%clk 0:00:41]} 31. Bc3 {[%clk 0:00:28]}  Rxd1 {[%clk 0:00:38]} 32. Rxd1 {[%clk 0:00:29]}  Ng5 {[%clk 0:00:38]} 33. Rd8+ {[%clk 0:00:28]}  Ke7 {[%clk 0:00:38]} 34. Rh8 {[%clk 0:00:28]}  Qf3+ {[%clk 0:00:37]} 0-1


[Site "https://www.chess.com"]

[Event "Titled Tuesday Blitz March 28 Early 2023"]
[White "Naroditsky, Daniel"]
[Black "Vaibhav Jayant Raut"]
[WhiteFideId "2026961"]
[BlackFideId "5089034"]
[WhiteElo "2633"]
[BlackElo "2156"]
[Result "1-0"]
[Round "06"]
[TimeControl "180+2"]
[Date "2023.03.28"]
[WhiteClock "0:01:30"]
[BlackClock "0:00:06"]

1. d4 {[%clk 0:03:00]}  Nf6 {[%clk 0:02:59]} 2. Nc3 {[%clk 0:03:01]}  d5 {[%clk 0:02:59]} 3. Bf4 {[%clk 0:03:02]}  e6 {[%clk 0:02:59]} 4. e3 {[%clk 0:03:02]}  Bd6 {[%clk 0:02:58]} 5. Nf3 {[%clk 0:03:02]}  O-O {[%clk 0:02:58]} 6. Bd3 {[%clk 0:03:03]}  c5 {[%clk 0:02:58]} 7. dxc5 {[%clk 0:03:04]}  Bxf4 {[%clk 0:02:55]} 8. exf4 {[%clk 0:03:05]}  Qc7 {[%clk 0:02:56]} 9. Qd2 {[%clk 0:03:05]}  Qxc5 {[%clk 0:02:52]} 10. O-O {[%clk 0:03:06]}  Nc6 {[%clk 0:02:45]} 11. Ne2 {[%clk 0:03:06]}  Bd7 {[%clk 0:02:43]} 12. Ned4 {[%clk 0:03:07]}  Nxd4 {[%clk 0:02:40]} 13. Nxd4 {[%clk 0:03:08]}  Rac8 {[%clk 0:02:37]} 14. c3 {[%clk 0:03:07]}  Rfe8 {[%clk 0:02:36]} 15. Rfe1 {[%clk 0:03:08]}  Kf8 {[%clk 0:02:31]} 16. Re5 {[%clk 0:03:07]}  b5 {[%clk 0:02:26]} 17. Nc2 {[%clk 0:02:56]}  Bc6 {[%clk 0:02:24]} 18. Rae1 {[%clk 0:02:56]}  g6 {[%clk 0:02:21]} 19. h3 {[%clk 0:02:55]}  Nd7 {[%clk 0:02:21]} 20. R5e2 {[%clk 0:02:54]}  Kg7 {[%clk 0:02:19]} 21. Nd4 {[%clk 0:02:53]}  b4 {[%clk 0:02:14]} 22. f5 {[%clk 0:02:50]}  e5 {[%clk 0:02:09]} 23. f6+ {[%clk 0:02:50]}  Nxf6 {[%clk 0:01:48]} 24. Rxe5 {[%clk 0:02:49]}  Rxe5 {[%clk 0:01:43]} 25. Rxe5 {[%clk 0:02:50]}  Bd7 {[%clk 0:01:35]} 26. Ne2 {[%clk 0:02:34]}  bxc3 {[%clk 0:01:31]} 27. bxc3 {[%clk 0:02:30]}  h6 {[%clk 0:01:18]} 28. Qf4 {[%clk 0:02:28]}  Be6 {[%clk 0:01:14]} 29. Re3 {[%clk 0:02:16]}  Qc7 {[%clk 0:01:12]} 30. Bxg6 {[%clk 0:01:59]}  Qxf4 {[%clk 0:00:50]} 31. Nxf4 {[%clk 0:02:00]}  d4 {[%clk 0:00:49]} 32. cxd4 {[%clk 0:01:52]}  Rc1+ {[%clk 0:00:49]} 33. Kh2 {[%clk 0:01:52]}  Bxa2 {[%clk 0:00:50]} 34. Ra3 {[%clk 0:01:46]}  Bc4 {[%clk 0:00:25]} 35. Rxa7 {[%clk 0:01:42]}  Rd1 {[%clk 0:00:20]} 36. Bf5 {[%clk 0:01:33]}  Rxd4 {[%clk 0:00:16]} 37. Ne6+ {[%clk 0:01:32]}  Bxe6 {[%clk 0:00:16]} 38. Bxe6 {[%clk 0:01:32]}  Ne4 {[%clk 0:00:15]} 39. Rxf7+ {[%clk 0:01:32]}  Kg6 {[%clk 0:00:16]} 40. Rf4 {[%clk 0:01:31]}  Kg5 {[%clk 0:00:15]} 41. g3 {[%clk 0:01:30]}  Kh5 {[%clk 0:00:08]} 42. Bf7+ {[%clk 0:01:29]}  Kg5 {[%clk 0:00:06]} 43. h4# {[%clk 0:01:30]} 1-0


[Site "https://www.chess.com"]